lending/lending_fUSD_20250429
["ID","MTS","AMOUNT","RATE_DAILY","PERIOD"]
[359344448,1745946649126,-470.0,0.00027945,2]
[359344449,1745946649136,-470.0,0.00027945,2]
[359344450,1745946649147,-464.111352,0.00027945,2]
[359344451,1745946649157,-470.0,0.00027945,2]
[359344452,1745946649166,-470.0,0.00027945,2]
[359344453,1745946649177,-470.0,0.00027945,2]
[359344454,1745946649188,-470.0,0.00027945,2]
[359344455,1745946649199,-470.0,0.00027945,2]
[359344456,1745946649209,-470.0,0.00027945,2]
[359344457,1745946649219,-470.0,0.00027945,2]
[359344458,1745946649231,-722.26,0.00027945,2]
[359344459,1745946649241,-470.0,0.00027945,2]
[359344460,1745946649251,-470.0,0.00027945,2]
[359344461,1745946649260,-470.0,0.00027945,2]
[359344462,1745946649271,-470.0,0.00027945,2]
[359344463,1745946649280,-709.98,0.00027945,2]
[359344464,1745946649290,-775.0,0.00027945,2]
[359344465,1745946649300,-470.0,0.00027945,2]
[359344466,1745946649310,-470.0,0.00027945,2]
[359344467,1745946649320,-470.0,0.00027945,2]
[359344468,1745946649330,-341.26525845,0.00027945,2]
[359344469,1745946649341,-470.0,0.00027945,2]
[359344470,1745946649351,-470.0,0.00027945,2]
[359344471,1745946649362,-336.89947316,0.00027945,2]
[359344472,1745946649371,-470.0,0.00027945,2]
[359344473,1745946649382,-470.0,0.00027945,2]
[359344474,1745946649391,-470.0,0.00027945,2]
[359344475,1745946649402,-470.0,0.00027945,2]
[359344476,1745946649411,-701.98,0.00027945,2]
[359344477,1745946649422,-470.0,0.00027945,2]
[359344478,1745946649431,-470.0,0.00027945,2]
[359344479,1745946649441,-470.0,0.00027945,2]
[359344480,1745946649450,-470.0,0.00027945,2]
[359344481,1745946649460,-470.0,0.00027945,2]
[359344482,1745946649469,-607.49521348,0.00027945,2]
[359344483,1745946649479,-470.0,0.00027945,2]
[359344484,1745946649488,-659.25,0.00027945,2]
[359344485,1745946649498,-1052.85,0.00027945,2]
[359344486,1745946649507,-210.9,0.00027945,2]
[359344487,1745946649516,-470.0,0.00027945,2]
[359344488,1745946649526,-470.0,0.00027945,2]
[359344489,1745946649535,-470.0,0.00027945,2]
[359344490,1745946649545,-470.0,0.00027945,2]
[359344491,1745946649555,-470.0,0.00027945,2]
[359344492,1745946649565,-596.49,0.00027945,2]
[359344493,1745946649574,-470.0,0.00027945,2]
[359344494,1745946649584,-470.0,0.00027945,2]
[359344495,1745946649593,-470.0,0.00027945,2]
[359344496,1745946649602,-470.0,0.00027945,2]
[359344497,1745946649611,-470.0,0.00027945,2]
[359344498,1745946649621,-910.59,0.00027945,2]
[359344499,1745946649631,-841.84,0.00027945,2]
[359344500,1745946649641,-470.0,0.00027945,2]
[359344501,1745946649651,-470.0,0.00027945,2]
[359344502,1745946649660,-470.0,0.00027945,2]
[359344503,1745946649670,-151.0,0.00027945,7]
[359344504,1745946649679,-151.0,0.00027945,7]
[359344505,1745946649689,-676.54,0.00027945,2]
[359344506,1745946649699,-470.0,0.00027945,2]
[359344507,1745946649709,-470.0,0.00027945,2]
[359344508,1745946649718,-240.41061,0.00027945,7]
[359344509,1745946649727,-637.46,0.00027945,2]
[359344510,1745946649737,-470.0,0.00027945,2]
[359344511,1745946649747,-470.0,0.00027945,2]
[359344512,1745946649757,-470.0,0.00027945,2]
[359344513,1745946649767,-494.75,0.00027945,2]
[359344514,1745946649776,-661.38,0.00027945,2]
[359344515,1745946649786,-470.0,0.00027945,2]
[359344516,1745946649795,-470.0,0.00027945,2]
[359344517,1745946649805,-482.28,0.00027945,2]
[359344518,1745946649814,-470.0,0.00027945,2]
[359344519,1745946649824,-470.0,0.00027945,2]
[359344520,1745946649833,-593.3604467,0.00027945,2]
[359344521,1745946649843,-470.0,0.00027945,2]
[359344522,1745946649852,-470.0,0.00027945,2]
[359344523,1745946649862,-470.0,0.00027945,2]
[359344524,1745946649872,-224.35519731,0.00027945,2]
[359344525,1745946649881,-1271.65,0.00027945,2]
[359344526,1745946649890,-470.0,0.00027945,2]
[359344527,1745946649900,-500.0,0.00027945,2]
[359344528,1745946649909,-786.63,0.00027945,2]
[359344529,1745946649919,-470.0,0.00027945,2]
[359344530,1745946649929,-653.38,0.00027945,2]
[359344531,1745946649940,-470.0,0.00027945,2]
[359344532,1745946649950,-305.40166594,0.00027945,2]
[359344533,1745946649962,-655.36,0.00027945,2]
[359344534,1745946649971,-648.84,0.00027945,2]
[359344535,1745946649981,-592.13,0.00027945,2]
[359344536,1745946649991,-470.0,0.00027945,2]
[359344537,1745946650000,-470.0,0.00027945,2]
[359344538,1745946650010,-470.0,0.00027945,2]
[359344539,1745946650020,-470.0,0.00027945,2]
[359344540,1745946650030,-300.0,0.00027945,2]
[359344541,1745946650039,-520.95,0.00027945,2]
[359344542,1745946650049,-470.0,0.00027945,2]
[359344543,1745946650058,-607.58,0.00027945,2]
[359344544,1745946650068,-378.69242628,0.00027945,2]
[359344545,1745946650078,-1617.0,0.00027945,2]
[359344546,1745946650088,-470.0,0.00027945,2]
[359344547,1745946650098,-551.22,0.00027945,2]
[359344548,1745946650107,-470.0,0.00027945,2]
[359344549,1745946650116,-470.0,0.00027945,2]
[359344550,1745946650126,-151.0,0.00027945,7]
[359344551,1745946650135,-151.0,0.00027945,7]
[359344552,1745946650145,-470.0,0.00027945,2]
[359344553,1745946650155,-1242.89,0.00027945,2]
[359344554,1745946650164,-470.0,0.00027945,2]
[359344555,1745946650174,-814.24,0.00027945,2]
[359344556,1745946650186,-470.0,0.00027945,2]
[359344557,1745946650198,-819.69,0.00027945,2]
[359344558,1745946650208,-935.31,0.00027945,2]
[359344559,1745946650218,-1068.71,0.00027945,2]
[359344560,1745946650228,-470.0,0.00027945,2]
[359344561,1745946650237,-470.0,0.00027945,2]
[359344562,1745946650247,-470.0,0.00027945,2]
[359344563,1745946650256,-470.0,0.00027945,2]
[359344564,1745946650266,-470.0,0.00027945,2]
[359344565,1745946650275,-470.0,0.00027945,2]
[359344566,1745946650285,-250.0,0.00027945,2]
[359344567,1745946650295,-470.0,0.00027945,2]
[359344568,1745946650304,-530.36707834,0.00027945,2]
[359344569,1745946650314,-470.0,0.00027945,2]
[359344570,1745946650325,-470.0,0.00027945,2]
[359344571,1745946650334,-470.0,0.00027945,2]
[359344572,1745946650344,-572.39,0.00027945,2]
[359344573,1745946650353,-519.70721051,0.00027945,2]
[359344574,1745946650363,-470.0,0.00027945,2]
[359344575,1745946650372,-470.0,0.00027945,2]
[359344576,1745946650381,-470.0,0.00027945,2]
[359344577,1745946650390,-470.0,0.00027945,2]
[359344578,1745946650400,-470.0,0.00027945,2]
[359344579,1745946650411,-470.0,0.00027945,2]
[359344580,1745946650420,-470.0,0.00027945,2]
[359344581,1745946650429,-470.0,0.00027945,2]
[359344582,1745946650439,-556.26,0.00027945,2]
[359344583,1745946650448,-583.43,0.00027945,2]
[359344584,1745946650457,-611.32,0.00027945,2]
[359344585,1745946650467,-470.0,0.00027945,2]
[359344586,1745946650476,-150.0,0.00027945,2]
[359344587,1745946650486,-470.0,0.00027945,2]
[359344588,1745946650495,-470.0,0.00027945,2]
[359344589,1745946650505,-817.61,0.00027945,2]
[359344590,1745946650514,-491.12,0.00027945,2]
[359344591,1745946650523,-1263.12,0.00027945,2]
[359344592,1745946650532,-470.0,0.00027945,2]
[359344593,1745946650542,-470.0,0.00027945,2]
[359344594,1745946650551,-625.87,0.00027945,2]
[359344595,1745946650561,-3378.15,0.00027945,2]
[359344596,1745946650570,-470.0,0.00027945,2]
[359344597,1745946650581,-470.0,0.00027945,2]
[359344598,1745946650591,-1038.63,0.00027945,2]
[359344599,1745946650603,-470.0,0.00027945,2]
[359344600,1745946650615,-706.75,0.00027945,2]
[359344601,1745946650624,-470.0,0.00027945,2]
[359344602,1745946650634,-2351.76,0.00027945,2]
[359344603,1745946650646,-470.0,0.00027945,2]
[359344604,1745946650655,-1612.7,0.00027945,2]
[359344605,1745946650665,-470.0,0.00027945,2]
[359344606,1745946650674,-470.0,0.00027945,2]
[359344607,1745946650684,-504.94,0.00027945,2]
[359344608,1745946650693,-470.0,0.00027945,2]
[359344609,1745946650703,-470.0,0.00027945,2]
[359344610,1745946650713,-470.0,0.00027945,2]
[359344611,1745946650723,-635.78,0.00027945,2]
[359344612,1745946650733,-470.0,0.00027945,2]
[359344613,1745946650742,-3853.5,0.00027945,2]
[359344614,1745946650751,-470.0,0.00027945,2]
[359344615,1745946650761,-470.0,0.00027945,2]
[359344616,1745946650770,-1002.8,0.00027945,2]
[359344617,1745946650780,-636.57,0.00027945,2]
[359344618,1745946650789,-802.69,0.00027945,2]
[359344619,1745946650799,-470.0,0.00027945,2]
[359344620,1745946650808,-470.0,0.00027945,2]
[359344621,1745946650817,-470.0,0.00027945,2]
[359344622,1745946650827,-686.43,0.00027945,2]
[359344623,1745946650836,-470.0,0.00027945,2]
[359344624,1745946650845,-516.18305759,0.00027945,2]
[359344625,1745946650855,-470.0,0.00027945,2]
[359344626,1745946650864,-470.0,0.00027945,2]
[359344627,1745946650873,-541.7174224,0.00027945,2]
[359344628,1745946650883,-1074.0,0.00027945,2]
[359344629,1745946650892,-496.91,0.00027945,2]
[359344630,1745946650903,-470.0,0.00027945,2]
[359344631,1745946650913,-633.55,0.00027945,2]
[359344632,1745946650921,-664.04,0.00027945,2]
[359344633,1745946650930,-828.41,0.00027945,2]
[359344634,1745946650939,-470.0,0.00027945,2]
[359344635,1745946650949,-470.0,0.00027945,2]
[359344636,1745946650959,-470.0,0.00027945,2]
[359344637,1745946650968,-470.0,0.00027945,2]
[359344638,1745946650978,-174.772255,0.00027945,7]
[359344639,1745946650987,-174.772255,0.00027945,7]
[359344640,1745946650996,-174.772255,0.00027945,7]
[359344641,1745946651005,-480.18,0.00027945,2]
[359344642,1745946651016,-470.0,0.00027945,2]
[359344643,1745946651026,-174.772255,0.00027945,7]
[359344644,1745946651035,-470.0,0.00027945,2]
[359344645,1745946651046,-174.772255,0.00027945,7]
[359344646,1745946651056,-470.0,0.00027945,2]
[359344647,1745946651065,-174.772255,0.00027945,7]
[359344648,1745946651074,-470.0,0.00027945,2]
[359344649,1745946651083,-637.6,0.00027945,2]
[359344650,1745946651093,-470.0,0.00027945,2]
[359344651,1745946651102,-470.0,0.00027945,2]
[359344652,1745946651112,-360.328556,0.00027945,2]
[359344653,1745946651123,-470.0,0.00027945,2]
[359344654,1745946651132,-189.49164967,0.00027945,2]
[359344655,1745946651141,-470.0,0.00027945,2]
[359344656,1745946651150,-470.0,0.00027945,2]
[359344657,1745946651160,-470.0,0.00027945,2]
[359344658,1745946651169,-470.0,0.00027945,2]
[359344659,1745946651179,-613.1,0.00027945,2]
[359344660,1745946651189,-822.31,0.00027945,2]
[359344661,1745946651202,-465.74,0.00027945,2]
[359344662,1745946651212,-470.0,0.00027945,2]
[359344663,1745946651221,-470.0,0.00027945,2]
[359344664,1745946651231,-470.0,0.00027945,2]
[359344665,1745946651242,-470.0,0.00027945,2]
[359344666,1745946651379,-740.36,0.00027945,2]
[359344667,1745946651401,-470.0,0.00027945,2]
[359344668,1745946651411,-470.0,0.00027945,2]
[359344669,1745946651421,-490.15,0.00027945,2]
[359344670,1745946651430,-470.0,0.00027945,2]
[359344671,1745946651439,-470.0,0.00027945,2]
[359344672,1745946651449,-470.0,0.00027945,2]
[359344673,1745946651458,-1158.93,0.00027945,2]
[359344674,1745946651468,-470.0,0.00027945,2]
[359344675,1745946651478,-600.27,0.00027945,2]
[359344676,1745946651488,-480.75,0.00027945,2]
[359344677,1745946651497,-828.51,0.00027945,2]
[359344678,1745946651507,-407.06320316,0.00027945,2]
[359344679,1745946651516,-500.0,0.00027945,2]
[359344680,1745946651526,-536.44461584,0.00027945,2]
[359344681,1745946651536,-569.9,0.00027945,2]
[359344682,1745946651545,-470.0,0.00027945,2]
[359344683,1745946651555,-1775.54,0.00027945,2]
[359344684,1745946651564,-989.38,0.00027945,2]
[359344685,1745946651574,-743.53,0.00027945,2]
[359344686,1745946651583,-470.0,0.00027945,2]
[359344687,1745946651593,-470.0,0.00027945,2]
[359344688,1745946651603,-470.0,0.00027945,2]
[359344689,1745946651612,-533.85,0.00027945,2]
[359344690,1745946651621,-470.0,0.00027945,2]
[359344691,1745946651631,-470.0,0.00027945,2]
[359344692,1745946651640,-470.0,0.00027945,2]
[359344693,1745946651649,-470.0,0.00027945,2]
[359344694,1745946651659,-512.19,0.00027945,2]
[359344695,1745946651668,-876.37,0.00027945,2]
[359344696,1745946651677,-825.85,0.00027945,2]
[359344697,1745946651687,-470.0,0.00027945,2]
[359344698,1745946651696,-888.63,0.00027945,2]
[359344699,1745946651705,-470.0,0.00027945,2]
[359344700,1745946651715,-720.21,0.00027945,2]
[359344701,1745946651724,-470.0,0.00027945,2]
[359344702,1745946651734,-592.42,0.00027945,2]
[359344703,1745946651743,-470.0,0.00027945,2]
[359344704,1745946651753,-470.0,0.00027945,2]
[359344705,1745946651763,-470.0,0.00027945,2]
[359344706,1745946651773,-425.72935534,0.00027945,2]
[359344707,1745946651783,-1663.01,0.00027945,2]
[359344708,1745946651794,-715.99,0.00027945,2]
[359344709,1745946651804,-971.57,0.00027945,2]
[359344710,1745946651815,-470.0,0.00027945,2]
[359344711,1745946651825,-470.0,0.00027945,2]
[359344712,1745946651834,-470.0,0.00027945,2]
[359344713,1745946651843,-470.0,0.00027945,2]
[359344714,1745946651853,-642.99,0.00027945,2]
[359344715,1745946651863,-470.0,0.00027945,2]
[359344716,1745946651872,-470.0,0.00027945,2]
[359344717,1745946651882,-470.0,0.00027945,2]
[359344718,1745946651891,-470.0,0.00027945,2]
[359344719,1745946651902,-470.0,0.00027945,2]
[359344720,1745946651914,-184.01976087,0.00027945,2]
[359344721,1745946651923,-470.0,0.00027945,2]
[359344722,1745946651933,-570.97,0.00027945,2]
[359344723,1745946651942,-695.71,0.00027945,2]
[359344724,1745946651952,-468.6820998,0.00027945,2]
[359344725,1745946651962,-470.0,0.00027945,2]
[359344726,1745946651972,-470.0,0.00027945,2]
[359344727,1745946651982,-700.74,0.00027945,2]
[359344728,1745946651991,-470.0,0.00027945,2]
[359344729,1745946652001,-470.0,0.00027945,2]
[359344730,1745946652010,-783.85,0.00027945,2]
[359344731,1745946652020,-151.0,0.00027945,7]
[359344732,1745946652029,-700.22,0.00027945,2]
[359344733,1745946652040,-470.0,0.00027945,2]
[359344734,1745946652051,-150.0,0.00027945,2]
[359344735,1745946652061,-470.0,0.00027945,2]
[359344736,1745946652071,-1807.3,0.00027945,2]
[359344737,1745946652080,-470.0,0.00027945,2]
[359344738,1745946652090,-470.0,0.00027945,2]
[359344739,1745946652099,-824.71,0.00027945,2]
[359344740,1745946652108,-690.41,0.00027945,2]
[359344741,1745946652118,-470.0,0.00027945,2]
[359344742,1745946652127,-470.0,0.00027945,2]
[359344743,1745946652137,-470.0,0.00027945,2]
[359344744,1745946652146,-470.0,0.00027945,2]
[359344745,1745946652155,-8083.38,0.00027945,2]
[359344746,1745946652164,-500.0,0.00027945,2]
[359344747,1745946652174,-151.0,0.00027945,2]
[359344748,1745946652183,-470.0,0.00027945,2]
[359344749,1745946652195,-470.0,0.00027945,2]
[359344750,1745946652204,-605.11,0.00027945,2]
[359344751,1745946652214,-150.0,0.00027945,2]
[359344752,1745946652223,-470.0,0.00027945,2]
[359344753,1745946652233,-470.0,0.00027945,2]
[359344754,1745946652242,-738.0,0.00027945,2]
[359344755,1745946652253,-600.82,0.00027945,2]
[359344756,1745946652262,-150.0,0.00027945,2]
[359344757,1745946652271,-1573.39,0.00027945,2]
[359344758,1745946652280,-470.0,0.00027945,2]
[359344759,1745946652289,-15556.38,0.00027945,2]
[359344760,1745946652298,-470.0,0.00027945,2]
[359344761,1745946652307,-424.38607564,0.00027945,2]
[359344762,1745946652984,-45.61392436,0.00027945,2]
[359344763,1745946652997,-470.0,0.00027945,2]
[359344764,1745946653011,-873.21,0.00027945,2]
[359344765,1745946653026,-653.85,0.00027945,2]
[359344766,1745946653039,-470.0,0.00027945,2]
[359344767,1745946653053,-470.0,0.00027945,2]
[359344768,1745946653066,-563.24406147,0.00027945,2]
[359344769,1745946653081,-359.18002552,0.00027945,2]
[359344770,1745946653094,-470.0,0.00027945,2]
[359344771,1745946653107,-882.89,0.00027945,2]
[359344772,1745946653117,-511.43142515,0.00027945,2]
[359344773,1745946653126,-719.83,0.00027945,2]
[359344774,1745946653136,-807.35,0.00027945,2]
[359344775,1745946653145,-470.0,0.00027945,2]
[359344776,1745946653154,-654.75,0.00027945,2]
[359344777,1745946653164,-470.0,0.00027945,2]
[359344778,1745946653174,-151.0,0.00027945,7]
[359344779,1745946653184,-610.55,0.00027945,2]
[359344780,1745946653198,-470.0,0.00027945,2]
[359344781,1745946653207,-593.23,0.00027945,2]
[359344782,1745946653217,-606.1869493,0.00027945,2]
[359344783,1745946653227,-470.0,0.00027945,2]
[359344784,1745946653237,-470.0,0.00027945,2]
[359344785,1745946653247,-509.64,0.00027945,2]
[359344786,1745946653256,-470.0,0.00027945,2]
[359344787,1745946653267,-470.0,0.00027945,2]
[359344788,1745946653277,-978.08,0.00027945,2]
[359344789,1745946653287,-781.68,0.00027945,2]
[359344790,1745946653296,-470.0,0.00027945,2]
[359344791,1745946653306,-470.0,0.00027945,2]
[359344792,1745946653315,-1521.18,0.00027945,2]
[359344793,1745946653325,-609.07,0.00027945,2]
[359344794,1745946653335,-623.29,0.00027945,2]
[359344795,1745946653344,-1076.85,0.00027945,2]
[359344796,1745946653354,-470.0,0.00027945,2]
[359344797,1745946653363,-1033.91,0.00027945,2]
[359344798,1745946653373,-1113.52,0.00027945,2]
[359344799,1745946653383,-409.44484962,0.00027945,2]
[359344800,1745946653392,-470.0,0.00027945,2]
[359344801,1745946653402,-470.0,0.00027945,2]
[359344802,1745946653411,-1107.01,0.00027945,2]
[359344803,1745946653421,-470.0,0.00027945,2]
[359344804,1745946653430,-613.5,0.00027945,2]
[359344805,1745946653440,-470.0,0.00027945,2]
[359344806,1745946653450,-4648.92,0.00027945,2]
[359344807,1745946653459,-470.0,0.00027945,2]
[359344808,1745946653469,-470.0,0.00027945,2]
[359344809,1745946653479,-1015.66,0.00027945,2]
[359344810,1745946653488,-470.0,0.00027945,2]
[359344811,1745946653842,-802.91,0.00027945,2]
[359344812,1745946653865,-833.9,0.00027945,2]
[359344813,1745946653888,-470.0,0.00027945,2]
[359344814,1745946653906,-502.17,0.00027945,2]
[359344815,1745946653916,-2447.99,0.00027945,2]
[359344816,1745946653926,-470.0,0.00027945,2]
[359344817,1745946653935,-470.0,0.00027945,2]
[359344818,1745946653945,-470.0,0.00027945,2]
[359344819,1745946653955,-2885.7,0.00027945,2]
[359344820,1745946653965,-470.0,0.00027945,2]
[359344821,1745946653975,-614.61,0.00027945,2]
[359344822,1745946653986,-470.0,0.00027945,2]
[359344823,1745946653996,-613.23,0.00027945,2]
[359344824,1745946654006,-470.0,0.00027945,2]
[359344825,1745946654016,-2481.7,0.00027945,2]
[359344826,1745946654026,-470.0,0.00027945,2]
[359344827,1745946654035,-470.0,0.00027945,2]
[359344828,1745946654045,-470.0,0.00027945,2]
[359344829,1745946654055,-470.0,0.00027945,2]
[359344830,1745946654065,-450.86597082,0.00027945,2]
[359344831,1745946655276,-284.51862672,0.00027397,2]
[359344832,1745946655292,-197.86137328,0.00027397,2]
[359344833,1745946655301,-470.0,0.00027397,2]
[359344834,1745946655310,-500.0,0.00027397,2]
[359344835,1745946655328,-217.652517,0.00027397,2]
[359344836,1745946655338,-470.0,0.00027397,2]
[359344837,1745946655347,-470.0,0.00027397,2]
[359344838,1745946655357,-470.0,0.00027397,2]
[359344839,1745946655367,-470.0,0.00027397,2]
[359344840,1745946655376,-424.40837231,0.00027671,2]
[359344841,1745946655576,-470.0,0.00027397,2]
[359344842,1745946655586,-57.97162769,0.00027671,2]
[359344843,1745946655596,-470.0,0.00027671,2]
[359344844,1745946655605,-285.86,0.00027671,2]
[359344845,1745946655614,-470.0,0.00027671,2]
[359344846,1745946655623,-19.13402918,0.00027945,2]
[359344847,1745946655633,-1347.18,0.00027945,2]
[359344848,1745946655642,-470.0,0.00027945,2]
[359344849,1745946655651,-470.0,0.00027945,2]
[359344850,1745946655661,-776.92,0.00027945,2]
[359344851,1745946655670,-470.0,0.00027945,2]
[359344852,1745946655679,-470.0,0.00027945,2]
[359344853,1745946655688,-470.0,0.00027945,2]
[359344854,1745946655697,-470.0,0.00027945,2]
[359344855,1745946655707,-470.0,0.00027945,2]
[359344856,1745946655716,-864.24,0.00027945,2]
[359344857,1745946655725,-3036.85,0.00027945,2]
[359344858,1745946655734,-470.0,0.00027945,2]
[359344859,1745946655743,-470.0,0.00027945,2]
[359344860,1745946655752,-470.0,0.00027945,2]
[359344861,1745946655761,-470.0,0.00027945,2]
[359344862,1745946655770,-470.0,0.00027945,2]
[359344863,1745946655779,-723.05,0.00027945,2]
[359344864,1745946655788,-1409.09,0.00027945,2]
[359344865,1745946655798,-470.0,0.00027945,2]
[359344866,1745946655807,-470.0,0.00027945,2]
[359344867,1745946655816,-470.0,0.00027945,2]
[359344868,1745946655825,-656.63,0.00027945,2]
[359344869,1745946655834,-651.63,0.00027945,2]
[359344870,1745946655843,-594.39,0.00027945,2]
[359344871,1745946655852,-2157.65,0.00027945,2]
[359344872,1745946655861,-470.0,0.00027945,2]
[359344873,1745946655871,-470.0,0.00027945,2]
[359344874,1745946655882,-642.31,0.00027945,2]
[359344875,1745946655893,-251.54869427,0.00027945,2]
[359344876,1745946655904,-470.0,0.00027945,2]
[359344877,1745946655915,-1519.41,0.00027945,2]
[359344878,1745946655925,-470.0,0.00027945,2]
[359344879,1745946655936,-488.62,0.00027945,2]
[359344880,1745946655946,-1072.93,0.00027945,2]
[359344881,1745946655957,-470.0,0.00027945,2]
[359344882,1745946655967,-470.0,0.00027945,2]
[359344883,1745946655977,-470.0,0.00027945,2]
[359344884,1745946655988,-470.0,0.00027945,2]
[359344885,1745946655998,-470.0,0.00027945,2]
[359344886,1745946656009,-969.41,0.00027945,2]
[359344887,1745946656020,-506.76,0.00027945,2]
[359344888,1745946656030,-470.0,0.00027945,2]
[359344889,1745946656040,-861.49,0.00027945,2]
[359344890,1745946656051,-1677.31,0.00027945,2]
[359344891,1745946656062,-1174.91,0.00027945,2]
[359344892,1745946656072,-470.0,0.00027945,2]
[359344893,1745946656082,-470.0,0.00027945,2]
[359344894,1745946656094,-748.47,0.00027945,2]
[359344895,1745946656104,-470.0,0.00027945,2]
[359344896,1745946656114,-257.74691023,0.00027945,2]
[359344897,1745946656124,-470.0,0.00027945,2]
[359344898,1745946656134,-525.1017221,0.00027945,2]
[359344899,1745946656144,-623.25,0.00027945,2]
[359344900,1745946656154,-1316.54,0.00027945,2]
[359344901,1745946656164,-3336.25,0.00027945,2]
[359344902,1745946656174,-1660.91,0.00027945,2]
[359344903,1745946656183,-272.80460899,0.00027945,2]
[359344904,1745946656194,-470.0,0.00027945,2]
[359344905,1745946656205,-3275.58,0.00027945,2]
[359344906,1745946656214,-500.0,0.00027945,2]
[359344907,1745946656223,-150.0,0.00027945,2]
[359344908,1745946656234,-500.0,0.00027945,2]
[359344909,1745946656243,-588.09,0.00027945,2]
[359344910,1745946656253,-1213.97,0.00027945,2]
[359344911,1745946656264,-470.0,0.00027945,2]
[359344912,1745946656273,-873.78,0.00027945,2]
[359344913,1745946656283,-470.0,0.00027945,2]
[359344914,1745946656292,-470.0,0.00027945,2]
[359344915,1745946656301,-601.81,0.00027945,2]
[359344916,1745946656310,-691.35,0.00027945,2]
[359344917,1745946656319,-831.4,0.00027945,2]
[359344918,1745946656328,-470.0,0.00027945,2]
[359344919,1745946656337,-470.0,0.00027945,2]
[359344920,1745946656347,-1001.99,0.00027945,2]
[359344921,1745946656358,-470.0,0.00027945,2]
[359344922,1745946656367,-470.0,0.00027945,2]
[359344923,1745946656376,-470.0,0.00027945,2]
[359344924,1745946656385,-470.0,0.00027945,2]
[359344925,1745946656394,-812.69,0.00027945,2]
[359344926,1745946656403,-470.0,0.00027945,2]
[359344927,1745946656412,-568.54,0.00027945,2]
[359344928,1745946656421,-851.3,0.00027945,2]
[359344929,1745946656431,-820.55,0.00027945,2]
[359344930,1745946656440,-470.0,0.00027945,2]
[359344931,1745946656449,-749.52,0.00027945,2]
[359344932,1745946656459,-801.96,0.00027945,2]
[359344933,1745946656468,-470.0,0.00027945,2]
[359344934,1745946656477,-470.0,0.00027945,2]
[359344935,1745946656487,-9718.3,0.00027945,2]
[359344936,1745946656496,-613.25,0.00027945,2]
[359344937,1745946656506,-470.0,0.00027945,2]
[359344938,1745946656515,-470.0,0.00027945,2]
[359344939,1745946656524,-470.0,0.00027945,2]
[359344940,1745946656534,-656.07,0.00027945,2]
[359344941,1745946656543,-470.0,0.00027945,2]
[359344942,1745946656553,-678.43,0.00027945,2]
[359344943,1745946656562,-470.0,0.00027945,2]
[359344944,1745946656571,-470.0,0.00027945,2]
[359344945,1745946656581,-594.62,0.00027945,2]
[359344946,1745946656590,-1184.37,0.00027945,2]
[359344947,1745946656599,-667.04,0.00027945,2]